[Event "Early-Titled-Tuesday-Blitz-January-23-2024"]
[Site "Chess.com"]
[Date "2024.01.23"]
[Round "6"]
[White "HajiyevKanan"]
[Black "emeli_chess"]
[Result "0-1"]
[WhiteElo "2581"]
[BlackElo "2437"]
[TimeControl "180+1"]
[EndTime "9:08:12 PST"]
[Termination "emeli_chess won by resignation"]

1. d4 {[%clk 0:03:00.9]} 1... Nf6 {[%clk 0:02:59.7]} 2. Nf3 {[%clk 0:03:01.8]}
2... d5 {[%clk 0:02:59.3]} 3. c4 {[%clk 0:03:02.2]} 3... e6 {[%clk 0:02:59.4]}
4. cxd5 {[%clk 0:03:03.1]} 4... exd5 {[%clk 0:02:59.3]} 5. Nc3 {[%clk 0:03:04]}
5... Bb4 {[%clk 0:02:59.3]} 6. Qc2 {[%clk 0:02:57.3]} 6... c5 {[%clk 0:02:51.2]}
7. a3 {[%clk 0:02:54.9]} 7... Bxc3+ {[%clk 0:02:47.6]} 8. bxc3 {[%clk
0:02:55.8]} 8... c4 {[%clk 0:02:46]} 9. Bg5 {[%clk 0:02:55.4]} 9... h6 {[%clk
0:02:41.1]} 10. Bh4 {[%clk 0:02:40.4]} 10... O-O {[%clk 0:02:24.3]} 11. e3
{[%clk 0:02:37.4]} 11... Qd6 {[%clk 0:02:12.7]} 12. Be2 {[%clk 0:02:28.4]} 12...
Ne4 {[%clk 0:02:10.9]} 13. O-O {[%clk 0:02:25]} 13... Bf5 {[%clk 0:02:10.5]} 14.
Qb2 {[%clk 0:02:24.4]} 14... b6 {[%clk 0:02:06.7]} 15. Nd2 {[%clk 0:02:20.2]}
15... Nxd2 {[%clk 0:02:00]} 16. Qxd2 {[%clk 0:02:21.1]} 16... Nd7 {[%clk
0:01:54]} 17. a4 {[%clk 0:02:21.7]} 17... Rfe8 {[%clk 0:01:50.5]} 18. Rfe1
{[%clk 0:02:11.3]} 18... a6 {[%clk 0:01:47.9]} 19. Bg3 {[%clk 0:01:58.2]} 19...
Qc6 {[%clk 0:01:47.4]} 20. Bd1 {[%clk 0:01:44.8]} 20... b5 {[%clk 0:01:43.6]}
21. Bc2 {[%clk 0:01:38.6]} 21... Bxc2 {[%clk 0:01:39]} 22. Qxc2 {[%clk
0:01:39.5]} 22... Nf6 {[%clk 0:01:38.9]} 23. Be5 {[%clk 0:01:29.3]} 23... Nd7
{[%clk 0:01:37]} 24. Bf4 {[%clk 0:01:27.9]} 24... Nf6 {[%clk 0:01:32.6]} 25.
Reb1 {[%clk 0:01:27.8]} 25... Re7 {[%clk 0:01:17.5]} 26. Be5 {[%clk 0:01:25]}
26... Rb7 {[%clk 0:01:10]} 27. Bxf6 {[%clk 0:01:20.9]} 27... gxf6 {[%clk
0:01:05.9]} 28. axb5 {[%clk 0:01:19.5]} 28... Rxb5 {[%clk 0:01:05.2]} 29. Rxb5
{[%clk 0:00:59.2]} 29... axb5 {[%clk 0:01:04.4]} 30. Rb1 {[%clk 0:00:59.5]}
30... Rb8 {[%clk 0:01:02.2]} 31. Qf5 {[%clk 0:00:58.8]} 31... Kg7 {[%clk
0:01:01.5]} 32. Qg4+ {[%clk 0:00:58.1]} 32... Kh7 {[%clk 0:00:54.9]} 33. Qh4
{[%clk 0:00:54.9]} 33... b4 {[%clk 0:00:49.7]} 34. cxb4 {[%clk 0:00:50.1]} 34...
c3 {[%clk 0:00:49.8]} 35. Qh5 {[%clk 0:00:47.7]} 35... c2 {[%clk 0:00:38.9]} 36.
Qf5+ {[%clk 0:00:33.1]} 36... Kg7 {[%clk 0:00:39]} 37. Rc1 {[%clk 0:00:32.8]}
37... Rxb4 {[%clk 0:00:38.8]} 38. h4 {[%clk 0:00:29.8]} 38... Rc4 {[%clk
0:00:35.7]} 39. Qg4+ {[%clk 0:00:27.7]} 39... Kh7 {[%clk 0:00:32.8]} 40. Qf5+
{[%clk 0:00:27.8]} 40... Kg7 {[%clk 0:00:32.6]} 41. Qd3 {[%clk 0:00:28.5]} 41...
Qa4 {[%clk 0:00:29.2]} 42. Kh2 {[%clk 0:00:26.7]} 42... Qa2 {[%clk 0:00:27.8]}
43. h5 {[%clk 0:00:24.7]} 43... Qb2 {[%clk 0:00:26.1]} 44. Qd2 {[%clk 0:00:22]}
44... Qb8+ {[%clk 0:00:19.3]} 45. g3 {[%clk 0:00:21.8]} 45... Qb3 {[%clk
0:00:18]} 46. g4 {[%clk 0:00:21.8]} 46... Qb2 {[%clk 0:00:17.6]} 47. Kg3 {[%clk
0:00:21.7]} 47... Qb3 {[%clk 0:00:17.7]} 48. Kf4 {[%clk 0:00:21.3]} 48... Qb8+
{[%clk 0:00:17.7]} 49. Kf3 {[%clk 0:00:21.7]} 49... Qb3 {[%clk 0:00:16.9]} 50.
Ke2 {[%clk 0:00:20.7]} 50... Qb2 {[%clk 0:00:15.7]} 51. Kd3 {[%clk 0:00:18.2]}
51... Qb3+ {[%clk 0:00:14.6]} 52. Ke2 {[%clk 0:00:18.5]} 52... Qb2 {[%clk
0:00:15]} 53. f4 {[%clk 0:00:19]} 53... Qb3 {[%clk 0:00:13.8]} 54. Kf3 {[%clk
0:00:19.6]} 54... Qb2 {[%clk 0:00:12.9]} 55. Kg3 {[%clk 0:00:19.6]} 55... Qb3
{[%clk 0:00:13]} 56. Kh4 {[%clk 0:00:20.1]} 56... Rc3 {[%clk 0:00:12.7]} 57. g5
{[%clk 0:00:18.6]} 57... Rxe3 {[%clk 0:00:11.4]} 58. gxh6+ {[%clk 0:00:17.8]}
58... Kxh6 {[%clk 0:00:09.7]} 59. f5 {[%clk 0:00:16.7]} 59... Kh7 {[%clk
0:00:07.4]} 60. Qg2 {[%clk 0:00:15.6]} 60... Qd3 {[%clk 0:00:04.7]} 61. h6
{[%clk 0:00:13.2]} 61... Re4+ {[%clk 0:00:03.7]} 62. Kh5 {[%clk 0:00:13.4]}
62... Qe2+ {[%clk 0:00:02.7]} 63. Qxe2 {[%clk 0:00:13]} 63... Rxe2 {[%clk
0:00:03]} 64. Kg4 {[%clk 0:00:12.1]} 64... Kxh6 {[%clk 0:00:02.5]} 65. Kf3
{[%clk 0:00:13]} 65... Rh2 {[%clk 0:00:02.5]} 66. Kg3 {[%clk 0:00:13.7]} 66...
Rd2 {[%clk 0:00:02.3]} 67. Kf3 {[%clk 0:00:14.4]} 67... Kg5 {[%clk 0:00:02.6]}
68. Ke3 {[%clk 0:00:15.2]} 68... Rh2 {[%clk 0:00:02.8]} 69. Rg1+ {[%clk
0:00:15.6]} 69... Kxf5 {[%clk 0:00:02.9]} 70. Rf1+ {[%clk 0:00:16.5]} 70... Ke6
{[%clk 0:00:03.2]} 71. Kd3 {[%clk 0:00:17.1]} 71... f5 {[%clk 0:00:03.5]} 72.
Ra1 {[%clk 0:00:17.6]} 72... f4 {[%clk 0:00:03.4]} 73. Rf1 {[%clk 0:00:16.6]}
73... Kf5 {[%clk 0:00:03.7]} 74. Rc1 {[%clk 0:00:16.5]} 74... Rg2 {[%clk
0:00:03.8]} 75. Rf1 {[%clk 0:00:15]} 75... Kg4 {[%clk 0:00:04.1]} 76. Rh1 {[%clk
0:00:15.2]} 76... f3 {[%clk 0:00:04.1]} 77. Ke3 {[%clk 0:00:15.6]} 77... Re2+
{[%clk 0:00:03.7]} 78. Kd3 {[%clk 0:00:15.5]} 78... Kg3 {[%clk 0:00:04.2]} 79.
Rg1+ {[%clk 0:00:15.3]} 79... Kh2 {[%clk 0:00:04.2]} 80. Rc1 {[%clk 0:00:16.2]}
80... Kg2 {[%clk 0:00:04.4]} 81. Ra1 {[%clk 0:00:14.2]} 81... Re4 {[%clk
0:00:03.6]} 82. Kxc2 {[%clk 0:00:13.2]} 82... f2 {[%clk 0:00:04]} 83. Kd2 {[%clk
0:00:13]} 83... f1=Q {[%clk 0:00:04.4]} 84. Rxf1 {[%clk 0:00:12.7]} 84... Kxf1
{[%clk 0:00:05]} 85. Kd3 {[%clk 0:00:13.6]} 85... Kf2 {[%clk 0:00:05.4]} 86. Kc3
{[%clk 0:00:14.2]} 86... f5 {[%clk 0:00:05.8]} 87. Kb4 {[%clk 0:00:15.1]} 87...
Ke3 {[%clk 0:00:06.1]} 88. Kc5 {[%clk 0:00:16]} 88... f4 {[%clk 0:00:06.5]} 89.
Kxd5 {[%clk 0:00:16.6]} 89... Rxd4+ {[%clk 0:00:07]} 90. Kc5 {[%clk 0:00:17.5]}
90... f3 {[%clk 0:00:07.4]} 91. Kc6 {[%clk 0:00:18.4]} 91... f2 {[%clk
0:00:07.7]} 0-1

[Event "Early-Titled-Tuesday-Blitz-January-23-2024"]
[Site "Chess.com"]
[Date "2024.01.23"]
[Round "6"]
[White "LaPiToB"]
[Black "SujanaLohani"]
[Result "1-0"]
[WhiteElo "2288"]
[BlackElo "1976"]
[TimeControl "180+1"]
[EndTime "9:08:12 PST"]
[Termination "LaPiToB won on time"]

1. d4 {[%clk 0:03:00.9]} 1... Nf6 {[%clk 0:02:56.7]} 2. c4 {[%clk 0:03:00.9]}
2... d6 {[%clk 0:02:54.1]} 3. Nf3 {[%clk 0:02:59.3]} 3... g6 {[%clk 0:02:53.2]}
4. Nc3 {[%clk 0:02:58.4]} 4... Bg7 {[%clk 0:02:53.4]} 5. e4 {[%clk 0:02:58.3]}
5... O-O {[%clk 0:02:53.7]} 6. Be2 {[%clk 0:02:58.4]} 6... c5 {[%clk 0:02:52.6]}
7. Be3 {[%clk 0:02:52.9]} 7... cxd4 {[%clk 0:02:51.6]} 8. Nxd4 {[%clk
0:02:52.2]} 8... Nbd7 {[%clk 0:02:48]} 9. O-O {[%clk 0:02:50.1]} 9... b6 {[%clk
0:02:44]} 10. Nc6 {[%clk 0:02:27.5]} 10... Qe8 {[%clk 0:02:39.1]} 11. Nd5 {[%clk
0:02:18.5]} 11... Nc5 {[%clk 0:02:02.9]} 12. Ncxe7+ {[%clk 0:02:11.8]} 12... Kh8
{[%clk 0:02:01.4]} 13. Nxf6 {[%clk 0:02:10.2]} 13... Bxf6 {[%clk 0:01:52.9]} 14.
Nd5 {[%clk 0:02:09.9]} 14... Bxb2 {[%clk 0:01:51.8]} 15. Bd4+ {[%clk 0:02:10.2]}
15... Bxd4 {[%clk 0:01:49.6]} 16. Qxd4+ {[%clk 0:02:11.1]} 16... Qe5 {[%clk
0:01:49]} 17. Qxe5+ {[%clk 0:01:57.3]} 17... dxe5 {[%clk 0:01:48.4]} 18. f3
{[%clk 0:01:56.7]} 18... Ne6 {[%clk 0:01:41.4]} 19. Rfc1 {[%clk 0:01:53.3]}
19... Bb7 {[%clk 0:01:38.3]} 20. c5 {[%clk 0:01:51.7]} 20... Nxc5 {[%clk
0:01:37.4]} 21. a4 {[%clk 0:01:46.2]} 21... Nb3 {[%clk 0:01:32.8]} 22. Rab1
{[%clk 0:01:42.8]} 22... Nxc1 {[%clk 0:01:32.4]} 23. Rxc1 {[%clk 0:01:43]} 23...
Rac8 {[%clk 0:01:25.5]} 24. Rb1 {[%clk 0:01:41.5]} 24... Bxd5 {[%clk 0:01:19.7]}
25. exd5 {[%clk 0:01:40.1]} 25... Rc5 {[%clk 0:01:19.8]} 26. Rd1 {[%clk
0:01:37.1]} 26... Rd8 {[%clk 0:01:19.3]} 27. d6 {[%clk 0:01:37.2]} 27... Rc2
{[%clk 0:01:06.6]} 28. Bb5 {[%clk 0:01:35.7]} 28... Kg7 {[%clk 0:01:02]} 29. d7
{[%clk 0:01:34]} 29... Kf8 {[%clk 0:01:00.7]} 30. Re1 {[%clk 0:01:29]} 30... f6
{[%clk 0:00:59.9]} 31. f4 {[%clk 0:01:29]} 31... Rc5 {[%clk 0:00:59.4]} 32. fxe5
{[%clk 0:01:22.6]} 32... Rxe5 {[%clk 0:00:58.9]} 33. Rc1 {[%clk 0:01:21.1]}
33... Ke7 {[%clk 0:00:49.3]} 34. Rc7 {[%clk 0:01:19.1]} 34... a6 {[%clk
0:00:38.9]} 35. Bxa6 {[%clk 0:01:14.8]} 35... Rxd7 {[%clk 0:00:38.4]} 36. Rc1
{[%clk 0:01:08.7]} 36... Rd2 {[%clk 0:00:31.7]} 37. Bb5 {[%clk 0:01:07.3]} 37...
Rc5 {[%clk 0:00:30.5]} 38. Re1+ {[%clk 0:01:06.3]} 38... Re5 {[%clk 0:00:28.8]}
39. Rc1 {[%clk 0:01:06.1]} 39... Kd6 {[%clk 0:00:28.1]} 40. h3 {[%clk
0:01:04.6]} 40... Rc5 {[%clk 0:00:25.6]} 41. Re1 {[%clk 0:01:03.3]} 41... Rcc2
{[%clk 0:00:25.4]} 42. Bf1 {[%clk 0:01:02.1]} 42... Ra2 {[%clk 0:00:20.3]} 43.
Rb1 {[%clk 0:01:01.8]} 43... Kc5 {[%clk 0:00:19.2]} 44. Rb5+ {[%clk 0:01:01.2]}
44... Kc6 {[%clk 0:00:18.4]} 45. Rb4 {[%clk 0:01:00.8]} 45... Rdb2 {[%clk
0:00:17]} 46. Rf4 {[%clk 0:01:00.6]} 46... f5 {[%clk 0:00:16.4]} 47. Rh4 {[%clk
0:00:58.3]} 47... h5 {[%clk 0:00:14.9]} 48. Rc4+ {[%clk 0:00:55.8]} 48... Kd5
{[%clk 0:00:14.3]} 49. Rh4 {[%clk 0:00:35.8]} 49... Rd2 {[%clk 0:00:14]} 50.
Bc4+ {[%clk 0:00:34.7]} 50... Kc5 {[%clk 0:00:10.6]} 51. Bxa2 {[%clk 0:00:33.9]}
51... Rxa2 {[%clk 0:00:11.2]} 52. Kh2 {[%clk 0:00:29.6]} 52... Kd5 {[%clk
0:00:07.8]} 53. Rb4 {[%clk 0:00:29.2]} 53... Kc5 {[%clk 0:00:07.3]} 54. Rb5+
{[%clk 0:00:29.2]} 54... Kc6 {[%clk 0:00:07.5]} 55. Rb4 {[%clk 0:00:29.6]} 55...
Kc5 {[%clk 0:00:07.1]} 56. Rf4 {[%clk 0:00:29.3]} 56... Rd2 {[%clk 0:00:03.8]}
57. Kg3 {[%clk 0:00:28.5]} 57... Rd4 {[%clk 0:00:04]} 58. Rf3 {[%clk 0:00:02.2]}
58... Rxa4 {[%clk 0:00:02.7]} 59. Re3 {[%clk 0:00:02]} 59... Re4 {[%clk
0:00:02.7]} 60. Rd3 {[%clk 0:00:01.8]} 60... Rd4 {[%clk 0:00:02.6]} 61. Re3
{[%clk 0:00:01.6]} 61... b5 {[%clk 0:00:02.8]} 62. Ra3 {[%clk 0:00:01.4]} 62...
Ra4 {[%clk 0:00:02.7]} 63. Re3 {[%clk 0:00:01.2]} 63... Rc4 {[%clk 0:00:02.8]}
64. Rf3 {[%clk 0:00:02.1]} 64... b4 {[%clk 0:00:03]} 65. Rf2 {[%clk 0:00:02.5]}
65... Rc3+ {[%clk 0:00:03.1]} 66. Kf4 {[%clk 0:00:02.3]} 66... Kc4 {[%clk
0:00:03.4]} 67. Kg5 {[%clk 0:00:02.8]} 67... b3 {[%clk 0:00:03.7]} 68. Kxg6
{[%clk 0:00:02.9]} 68... Rc2 {[%clk 0:00:04.1]} 69. Rf4+ {[%clk 0:00:03.7]}
69... Kc3 {[%clk 0:00:03.8]} 70. Rf3+ {[%clk 0:00:04.4]} 70... Kb2 {[%clk
0:00:03.3]} 71. Kxh5 {[%clk 0:00:04.6]} 71... Rxg2 {[%clk 0:00:02.9]} 72. Rxf5
{[%clk 0:00:04.9]} 72... Kc1 {[%clk 0:00:02.5]} 73. Rb5 {[%clk 0:00:05.4]} 73...
b2 {[%clk 0:00:02]} 74. h4 {[%clk 0:00:06.1]} 1-0

[Event "Early-Titled-Tuesday-Blitz-January-23-2024"]
[Site "Chess.com"]
[Date "2024.01.23"]
[Round "6"]
[White "vesalhamedinia"]
[Black "Iunusovnuriddin"]
[Result "0-1"]
[WhiteElo "2491"]
[BlackElo "2295"]
[TimeControl "180+1"]
[EndTime "9:08:35 PST"]
[Termination "Iunusovnuriddin won by checkmate"]

1. d4 {[%clk 0:03:00.9]} 1... Nf6 {[%clk 0:02:57.6]} 2. c4 {[%clk 0:03:01.1]}
2... c5 {[%clk 0:02:55.8]} 3. d5 {[%clk 0:03:00.8]} 3... e6 {[%clk 0:02:55]} 4.
Nc3 {[%clk 0:03:00.8]} 4... exd5 {[%clk 0:02:53.5]} 5. cxd5 {[%clk 0:03:01.7]}
5... d6 {[%clk 0:02:51.9]} 6. Nf3 {[%clk 0:03:01.9]} 6... g6 {[%clk 0:02:52]} 7.
Bg5 {[%clk 0:03:01.7]} 7... Bg7 {[%clk 0:02:50.2]} 8. Nd2 {[%clk 0:03:01.6]}
8... O-O {[%clk 0:02:49.4]} 9. e4 {[%clk 0:03:01.5]} 9... Re8 {[%clk 0:02:44.2]}
10. Be2 {[%clk 0:03:01.4]} 10... Na6 {[%clk 0:02:43.8]} 11. O-O {[%clk
0:02:58.1]} 11... Bd7 {[%clk 0:02:31.8]} 12. a4 {[%clk 0:02:52]} 12... Nb4
{[%clk 0:02:30.5]} 13. Re1 {[%clk 0:02:39.9]} 13... a6 {[%clk 0:02:27.6]} 14.
Nc4 {[%clk 0:02:34.4]} 14... h6 {[%clk 0:01:50.7]} 15. Bh4 {[%clk 0:02:28.5]}
15... g5 {[%clk 0:01:44.4]} 16. Bg3 {[%clk 0:02:26.8]} 16... Nxe4 {[%clk
0:01:45.3]} 17. Nxe4 {[%clk 0:02:21.6]} 17... Rxe4 {[%clk 0:01:46.2]} 18. Nxd6
{[%clk 0:02:14.1]} 18... Rd4 {[%clk 0:01:46]} 19. Qc1 {[%clk 0:01:56.6]} 19...
Nxd5 {[%clk 0:01:01.6]} 20. Qxc5 {[%clk 0:01:49.6]} 20... Bc6 {[%clk 0:01:01.3]}
21. Bh5 {[%clk 0:01:43.3]} 21... Qb6 {[%clk 0:00:26.3]} 22. Bxf7+ {[%clk
0:01:34.5]} 22... Kh8 {[%clk 0:00:26]} 23. Qc2 {[%clk 0:01:27.1]} 23... Nf4
{[%clk 0:00:18.2]} 24. Nf5 {[%clk 0:01:22.4]} 24... Rd7 {[%clk 0:00:08.8]} 25.
Be6 {[%clk 0:01:07.6]} 25... Rc7 {[%clk 0:00:05.4]} 26. Nxg7 {[%clk 0:01:05]}
26... Rxg7 {[%clk 0:00:06.1]} 27. Qc3 {[%clk 0:00:52.5]} 27... Rf8 {[%clk
0:00:05.9]} 28. Bg4 {[%clk 0:00:41.4]} 28... Bxg2 {[%clk 0:00:06.2]} 29. Re7
{[%clk 0:00:35.5]} 29... Qf6 {[%clk 0:00:03.7]} 30. Rxg7 {[%clk 0:00:28.6]}
30... Qxc3 {[%clk 0:00:03]} 31. bxc3 {[%clk 0:00:26.8]} 31... Kxg7 {[%clk
0:00:03.9]} 32. Rd1 {[%clk 0:00:18.3]} 32... Bc6 {[%clk 0:00:04.1]} 33. Rd6
{[%clk 0:00:18.3]} 33... Rf6 {[%clk 0:00:04]} 34. Rd8 {[%clk 0:00:18]} 34... h5
{[%clk 0:00:04.2]} 35. Bd1 {[%clk 0:00:17.6]} 35... h4 {[%clk 0:00:04.3]} 36.
Bxf4 {[%clk 0:00:17.6]} 36... gxf4 {[%clk 0:00:04.8]} 37. a5 {[%clk 0:00:17.2]}
37... Rg6+ {[%clk 0:00:05.3]} 38. Kf1 {[%clk 0:00:17.5]} 38... Rg2 {[%clk
0:00:06]} 39. h3 {[%clk 0:00:16.6]} 39... Rh2 {[%clk 0:00:06.4]} 40. Bg4 {[%clk
0:00:17.2]} 40... Rh1+ {[%clk 0:00:06.7]} 41. Ke2 {[%clk 0:00:17.4]} 41... Rc1
{[%clk 0:00:05.8]} 42. Kd3 {[%clk 0:00:17.1]} 42... f3 {[%clk 0:00:04.5]} 43.
Rd4 {[%clk 0:00:16.5]} 43... Rd1+ {[%clk 0:00:04.9]} 44. Ke3 {[%clk 0:00:16.9]}
44... Re1+ {[%clk 0:00:05.6]} 45. Kf4 {[%clk 0:00:16.8]} 45... Re7 {[%clk
0:00:05.2]} 46. Kg5 {[%clk 0:00:17]} 46... Re5+ {[%clk 0:00:04.8]} 47. Kxh4
{[%clk 0:00:17.5]} 47... Rxa5 {[%clk 0:00:05.7]} 48. Kg3 {[%clk 0:00:18]} 48...
Rc5 {[%clk 0:00:05.5]} 49. c4 {[%clk 0:00:18.1]} 49... b5 {[%clk 0:00:05.1]} 50.
cxb5 {[%clk 0:00:17.7]} 50... axb5 {[%clk 0:00:05.8]} 51. Bxf3 {[%clk
0:00:18.1]} 51... Rc3 {[%clk 0:00:05.8]} 52. Rf4 {[%clk 0:00:17.6]} 52... b4
{[%clk 0:00:05.8]} 53. Rxb4 {[%clk 0:00:11.1]} 53... Rxf3+ {[%clk 0:00:05.9]}
54. Kg4 {[%clk 0:00:10.7]} 54... Rxf2 {[%clk 0:00:06.5]} 55. Rc4 {[%clk
0:00:11.2]} 55... Bd7+ {[%clk 0:00:07]} 56. Kg3 {[%clk 0:00:11.2]} 56... Rf7
{[%clk 0:00:06.7]} 57. Rd4 {[%clk 0:00:11.1]} 57... Bf5 {[%clk 0:00:07.1]} 58.
h4 {[%clk 0:00:11.7]} 58... Bg6 {[%clk 0:00:08]} 59. Kg4 {[%clk 0:00:11.6]}
59... Kh6 {[%clk 0:00:08.4]} 60. Rd6 {[%clk 0:00:11.2]} 60... Ra7 {[%clk
0:00:06.1]} 61. Rd4 {[%clk 0:00:10]} 61... Ra1 {[%clk 0:00:06.2]} 62. Kf4 {[%clk
0:00:09.2]} 62... Rg1 {[%clk 0:00:06.6]} 63. Ke5 {[%clk 0:00:09.1]} 63... Kh5
{[%clk 0:00:06.4]} 64. Kf6 {[%clk 0:00:08.4]} 64... Bc2 {[%clk 0:00:05.3]} 65.
Rc4 {[%clk 0:00:07.4]} 65... Bd1 {[%clk 0:00:05.5]} 66. Rd4 {[%clk 0:00:07.7]}
66... Bg4 {[%clk 0:00:06.1]} 67. Ke5 {[%clk 0:00:07.2]} 67... Kxh4 {[%clk
0:00:06.7]} 68. Kf4 {[%clk 0:00:07.4]} 68... Rf1+ {[%clk 0:00:06.4]} 69. Ke3
{[%clk 0:00:07.7]} 69... Kg5 {[%clk 0:00:07.3]} 70. Rd5+ {[%clk 0:00:07.2]}
70... Bf5 {[%clk 0:00:08]} 71. Rd4 {[%clk 0:00:06.6]} 71... Ra1 {[%clk
0:00:08.1]} 72. Kf3 {[%clk 0:00:06.6]} 72... Kf6 {[%clk 0:00:08.7]} 73. Kf4
{[%clk 0:00:06.7]} 73... Rf1+ {[%clk 0:00:08.2]} 74. Kg3 {[%clk 0:00:07.2]}
74... Ke5 {[%clk 0:00:08.6]} 75. Ra4 {[%clk 0:00:06]} 75... Kf6 {[%clk
0:00:09.1]} 76. Ra6+ {[%clk 0:00:06]} 76... Kg5 {[%clk 0:00:09.4]} 77. Ra5
{[%clk 0:00:06.6]} 77... Rb1 {[%clk 0:00:09.6]} 78. Rc5 {[%clk 0:00:06.8]} 78...
Rb3+ {[%clk 0:00:09.6]} 79. Kf2 {[%clk 0:00:07.2]} 79... Kf4 {[%clk 0:00:10.4]}
80. Rc4+ {[%clk 0:00:06.6]} 80... Be4 {[%clk 0:00:10.1]} 81. Ra4 {[%clk
0:00:05.7]} 81... Rb2+ {[%clk 0:00:10]} 82. Ke1 {[%clk 0:00:06.2]} 82... Ke3
{[%clk 0:00:10.3]} 83. Kd1 {[%clk 0:00:06.6]} 83... Rb1# {[%clk 0:00:09]} 0-1